bitfinex/quotes_BTCUSD_20240731
["timestamp","ask_amount","ask_price","bid_price","bid_amount"]
[1722428797213,1.21193164,66174.0,66173.0,0.23913304]
[1722428797419,1.21193164,66174.0,66173.0,0.0865]
[1722428797420,1.51416464,66174.0,66173.0,0.0865]
[1722428797623,1.360048,66174.0,66173.0,0.00486454]
[1722428798025,1.360048,66174.0,66167.0,0.0819]
[1722428798026,1.05791,66168.0,66167.0,0.0819]
[1722428798228,1.05791,66168.0,66167.0,0.45584033]
[1722428798434,1.05791,66168.0,66167.0,0.46070559]
[1722428799451,0.15308188,66169.0,66167.0,0.52943863]
[1722428799616,0.15113,66168.0,66167.0,0.38280559]
[1722428799810,0.15113,66168.0,66167.0,0.44710559]
[1722428799998,0.45339,66168.0,66167.0,0.44710559]
[1722428800202,0.45339,66168.0,66167.0,0.52410559]
[1722428800604,0.151128,66169.0,66168.0,0.077]
[1722428800779,0.453384,66169.0,66168.0,0.23250777]
[1722428801445,0.45320211,66169.0,66168.0,0.23250777]
[1722428801950,0.45320211,66169.0,66168.0,0.23350777]
[1722428802123,0.45320211,66169.0,66168.0,0.23650777]
[1722428805673,0.75545811,66169.0,66168.0,0.23650777]
[1722428806036,0.75545811,66169.0,66168.0,0.23163304]
[1722428806249,0.45320211,66169.0,66168.0,0.23163304]
[1722428806454,0.45320211,66169.0,66168.0,0.23651547]
[1722428808204,0.75545811,66169.0,66168.0,0.23651547]
[1722428808407,0.75545811,66169.0,66168.0,0.004]
[1722428808675,1.05771411,66169.0,66168.0,0.004]
[1722428810392,0.75545811,66169.0,66168.0,0.004]
[1722428810842,0.75545811,66169.0,66168.0,0.15463304]
[1722428811059,0.75545811,66169.0,66168.0,0.22103304]
[1722428811254,0.75545811,66169.0,66168.0,0.30855228]
[1722428811665,0.45320211,66169.0,66168.0,0.30855228]
[1722428813477,0.45320211,66169.0,66168.0,0.30393304]
[1722428813676,0.15094611,66169.0,66168.0,0.30393304]
[1722428813875,0.45320211,66169.0,66168.0,0.30855228]
[1722428814077,0.45320211,66169.0,66168.0,0.30946528]
[1722428814455,0.45403211,66169.0,66168.0,0.30946528]
[1722428820741,0.75628811,66169.0,66168.0,0.30946528]
[1722428822163,0.75628811,66169.0,66168.0,0.24306528]
[1722428822336,1.05854411,66169.0,66168.0,0.16016528]
[1722428822518,1.05854411,66169.0,66168.0,0.00953224]
[1722428822716,1.05854411,66169.0,66168.0,0.004913]
[1722428823704,1.20314411,66169.0,66168.0,0.004913]
[1722428823909,1.50540011,66169.0,66168.0,0.004913]
[1722428824719,1.20314411,66169.0,66168.0,0.004913]
[1722428824917,1.12184411,66169.0,66168.0,0.004913]
[1722428825415,1.12184411,66169.0,66168.0,0.003913]
[1722428825579,1.12184411,66169.0,66168.0,0.000913]
[1722428825836,1.13384411,66169.0,66168.0,0.000913]
[1722428826011,1.08054411,66169.0,66168.0,0.000913]
[1722428826192,1.08054411,66169.0,66168.0,0.081913]
[1722428826387,1.22354884,66169.0,66168.0,0.081913]
[1722428826588,1.07054411,66169.0,66168.0,0.081913]
[1722428826788,1.08054411,66169.0,66168.0,0.081913]
[1722428827744,1.08054411,66169.0,66168.0,0.000913]
[1722428834221,0.77828811,66169.0,66168.0,0.000913]
[1722428834994,1.08054411,66169.0,66168.0,0.000913]
[1722428835760,0.47603211,66169.0,66168.0,0.29224604]
[1722428835966,0.47603211,66169.0,66168.0,0.29685075]
[1722428837016,0.46403211,66169.0,66168.0,0.29685075]
[1722428837258,0.46403211,66169.0,66168.0,0.29224604]
[1722428837458,0.47303211,66169.0,66168.0,0.29224604]
[1722428837682,0.47303211,66169.0,66168.0,0.29684412]
[1722428838549,0.46303211,66169.0,66168.0,0.29684412]
[1722428838747,0.46403211,66169.0,66168.0,0.29224604]
[1722428839190,0.46903211,66169.0,66168.0,0.29684412]
[1722428839395,0.45903211,66169.0,66168.0,0.29684412]
[1722428839609,0.46303211,66169.0,66168.0,0.29684412]
[1722428840186,0.76528811,66169.0,66168.0,0.29684412]
[1722428840578,0.76528811,66169.0,66168.0,0.23284412]
[1722428840781,0.46303211,66169.0,66168.0,0.23284412]
[1722428841012,0.46303211,66169.0,66168.0,0.22824604]
[1722428841204,0.46303211,66169.0,66168.0,0.23284412]
[1722428842494,0.61615241,66169.0,66168.0,0.23284412]
[1722428843137,0.46303211,66169.0,66168.0,0.23284412]
[1722428843342,0.16296079,66169.0,66168.0,0.23284412]
[1722428843543,0.00983,66169.0,66168.0,0.29894412]
[1722428844727,0.160958,66169.0,66168.0,0.29894412]
[1722428844890,0.151958,66169.0,66168.0,0.29894412]
[1722428845357,0.00083,66169.0,66168.0,0.30194412]
[1722428845558,0.00083,66169.0,66168.0,1.06061614]
[1722428845770,0.00083,66169.0,66168.0,1.48647525]
[1722428845985,0.00083,66169.0,66168.0,2.99647525]
[1722428846185,0.00083,66169.0,66168.0,3.00147525]
[1722428846340,0.00083,66169.0,66168.0,2.98947525]
[1722428846550,0.00083,66169.0,66168.0,1.48647525]
[1722428846892,0.00083,66169.0,66168.0,1.36087614]
[1722428847093,0.00083,66169.0,66168.0,1.48646782]
[1722428847333,0.00083,66169.0,66168.0,1.49646782]
[1722428847518,0.00083,66169.0,66168.0,1.49546782]
[1722428847670,0.00083,66169.0,66168.0,1.49646782]
[1722428847879,0.00083,66169.0,66168.0,1.49846782]
[1722428848078,0.00083,66169.0,66168.0,1.49746782]
[1722428848345,0.00283,66169.0,66168.0,1.49746782]
[1722428848854,0.00183,66169.0,66168.0,1.49046782]
[1722428849074,0.00283,66169.0,66168.0,1.49746782]
[1722428850090,0.00283,66169.0,66168.0,1.49746753]
[1722428850512,0.00283,66169.0,66168.0,1.50746753]
[1722428850642,0.00283,66169.0,66168.0,1.49746753]
[1722428851576,0.00283,66169.0,66168.0,1.50746753]
[1722428851938,0.00283,66169.0,66168.0,1.50946753]
[1722428852604,0.00283,66169.0,66168.0,1.7210626]
[1722428852744,0.00283,66169.0,66168.0,3.40953758]
[1722428852956,0.00283,66169.0,66168.0,3.71179758]
[1722428853156,0.00083,66183.0,66182.0,1.167686]
[1722428853368,0.00083,66183.0,66182.0,3.49671303]
[1722428853573,0.00083,66183.0,66182.0,3.98783677]
[1722428853785,0.0452472,66202.0,66196.0,0.151066]
[1722428853992,0.2036124,66206.0,66196.0,1.48104552]
[1722428853993,0.0678708,66205.0,66196.0,1.48104552]
[1722428854212,0.0452472,66208.0,66196.0,1.85330178]
[1722428854412,0.0452472,66210.0,66196.0,1.72776345]
[1722428854623,0.151039,66208.0,66196.0,1.72776345]
[1722428855020,0.0452472,66210.0,66196.0,1.72776345]
[1722428855226,0.0452472,66210.0,66196.0,1.74176345]
[1722428855227,0.0765,66197.0,66196.0,1.74176345]
[1722428855645,0.0765,66197.0,66196.0,1.72776345]
[1722428855843,0.0785,66197.0,66196.0,1.75276345]
[1722428856271,0.0755,66197.0,66196.0,1.72776345]
[1722428856471,0.0755,66197.0,66196.0,1.73776345]
[1722428856880,0.0755,66197.0,66196.0,1.72776345]
[1722428857083,0.0755,66197.0,66196.0,3.22776345]
[1722428857750,0.0775,66197.0,66196.0,3.25576345]
[1722428857972,0.0775,66197.0,66196.0,3.38129359]
[1722428858217,0.0775,66197.0,66196.0,4.78612259]
[1722428858427,0.06533,66224.0,66214.0,0.30205]
[1722428858631,0.4148216,66229.0,66214.0,0.30205]
[1722428858632,0.04513424,66233.0,66231.0,0.150986]
[1722428858799,0.00851,66238.0,66232.0,0.15365238]
[1722428859054,0.00851,66238.0,66235.0,0.230677]
[1722428859187,0.00851,66238.0,66235.0,0.532632]
[1722428859567,0.00851,66238.0,66235.0,0.68766115]
[1722428859983,0.00851,66238.0,66235.0,1.3321245]
[1722428860372,0.00851,66238.0,66235.0,1.37282705]
[1722428860592,0.00851,66238.0,66235.0,1.3321245]
[1722428860798,0.00851,66238.0,66235.0,1.29157115]
[1722428861660,0.00851,66238.0,66235.0,1.60642177]
[1722428861866,0.00851,66238.0,66235.0,2.72694577]
[1722428862087,0.00851,66238.0,66235.0,3.08840077]
[1722428862293,0.00851,66238.0,66235.0,3.08140077]
[1722428862502,0.00851,66238.0,66235.0,2.66399515]
[1722428862702,0.00851,66238.0,66235.0,4.29944466]
[1722428863127,0.00851,66238.0,66235.0,4.60139966]
[1722428863795,0.00851,66238.0,66235.0,3.21203666]
[1722428863996,0.00851,66238.0,66235.0,3.11152066]
[1722428864405,0.00851,66238.0,66235.0,2.98607115]
[1722428864624,0.00851,66238.0,66235.0,3.11152711]
[1722428864850,0.00851,66238.0,66235.0,1.61152711]
[1722428865918,0.00851,66238.0,66235.0,1.61152689]
[1722428866515,0.00851,66238.0,66235.0,1.62070919]
[1722428866716,0.00851,66238.0,66235.0,0.93311689]
[1722428866913,0.00851,66238.0,66235.0,0.70766115]
[1722428867091,0.00851,66238.0,66235.0,0.32600615]
[1722428867879,0.00851,66238.0,66235.0,0.62796115]
[1722428868097,0.00851,66238.0,66235.0,0.92991615]
[1722428869124,0.00851,66238.0,66235.0,0.62796115]
[1722428869506,0.00851,66238.0,66235.0,0.92991615]
[1722428871468,0.00851,66238.0,66235.0,0.32600615]
[1722428871644,0.159485,66236.0,66235.0,0.17502915]
[1722428872143,0.461435,66236.0,66235.0,0.17502915]
[1722428872376,0.763385,66236.0,66235.0,0.17502915]
[1722428872584,0.763385,66236.0,66235.0,0.17063304]
[1722428872982,0.461435,66236.0,66235.0,0.17492854]
[1722428874669,0.763385,66236.0,66235.0,0.17492854]
[1722428875524,0.763385,66236.0,66235.0,0.16063304]
[1722428875755,0.763385,66236.0,66235.0,0.15063304]
[1722428875984,0.842685,66236.0,66235.0,0.15063304]
[1722428876295,0.907985,66236.0,66235.0,0.15063304]
[1722428876954,0.907985,66236.0,66235.0,0.15494196]
[1722428877124,0.907985,66236.0,66235.0,0.15063304]
[1722428877326,0.906985,66236.0,66235.0,0.15063304]
[1722428877524,0.908985,66236.0,66235.0,0.15063304]
[1722428879246,0.908985,66236.0,66216.0,0.05283803]
[1722428879247,0.0664,66224.0,66216.0,0.05283803]
[1722428879615,0.0664,66224.0,66217.0,0.28045227]
[1722428879616,0.1414,66224.0,66217.0,0.28045227]
[1722428879827,0.151005,66223.0,66218.0,0.12550619]
[1722428880073,0.151005,66223.0,66219.0,0.27613923]
[1722428880269,0.151005,66223.0,66220.0,0.12550619]
[1722428880270,0.30201,66223.0,66220.0,0.12550619]
[1722428880465,0.453021,66222.0,66221.0,0.27613923]
[1722428880622,0.151005,66223.0,66221.0,0.2804518]
[1722428880826,0.0664,66224.0,66222.0,0.12550619]
[1722428881032,0.0664,66224.0,66223.0,0.28045156]
[1722428881217,0.361989,66228.0,66223.0,0.65439189]
[1722428881425,0.151,66225.0,66224.0,0.12550619]
[1722428881635,0.151,66225.0,66224.0,0.28049921]
[1722428882242,0.361989,66228.0,66224.0,0.28050723]
[1722428882445,0.361989,66228.0,66225.0,0.27614725]
[1722428882646,0.452986,66227.0,66226.0,0.12987395]
[1722428882845,0.452986,66227.0,66226.0,0.28050699]
[1722428883125,0.210995,66228.0,66226.0,0.28050699]
[1722428883317,0.310462,66236.0,66228.0,0.150992]
[1722428883318,0.150985,66232.0,66228.0,0.150992]
[1722428883473,0.006,66228.0,66227.0,0.150995]
[1722428883672,0.150987,66231.0,66227.0,0.27649764]
[1722428883875,0.150987,66231.0,66225.0,0.301997]
[1722428883876,0.150985,66232.0,66228.0,0.27649564]
[1722428884068,0.0623,66234.0,66229.0,0.12550264]
[1722428884268,0.150983,66233.0,66230.0,0.12550264]
[1722428884487,0.150983,66233.0,66231.0,0.12550264]
[1722428884661,0.452946,66233.0,66232.0,0.12550264]
[1722428884859,0.452946,66233.0,66232.0,0.27613568]
[1722428884860,0.75491,66233.0,66232.0,0.27613568]
[1722428885069,1.056874,66233.0,66232.0,0.27613568]
[1722428885320,1.056874,66233.0,66232.0,0.12550264]
[1722428885533,1.056905,66231.0,66230.0,0.37394033]
[1722428885727,1.200805,66231.0,66230.0,0.49945245]
[1722428885878,1.200805,66231.0,66230.0,0.49945291]
[1722428886750,1.204805,66231.0,66230.0,0.50045291]
[1722428888756,1.208805,66231.0,66230.0,0.37594033]
[1722428888981,1.208805,66231.0,66230.0,0.50145748]
[1722428890747,1.208805,66231.0,66230.0,0.002]
[1722428890920,1.208805,66231.0,66230.0,0.12751714]
[1722428891482,1.208805,66231.0,66230.0,0.002]
[1722428891906,1.20846235,66231.0,66230.0,0.002]
[1722428892116,1.51043535,66231.0,66230.0,0.002]
[1722428893263,1.92240835,66231.0,66230.0,0.002]
[1722428893456,1.96540835,66231.0,66230.0,0.002]
[1722428895272,1.96140835,66231.0,66230.0,0.001]
[1722428895429,0.151044,66206.0,66204.0,0.4771]
[1722428895645,0.453131,66206.0,66205.0,0.28055812]
[1722428896697,0.153044,66206.0,66205.0,0.28055812]
[1722428896832,0.001,66206.0,66205.0,0.28055812]
[1722428897037,0.152043,66206.0,66205.0,0.28055812]
[1722428897421,0.151043,66206.0,66205.0,0.28055812]
[1722428897698,0.45313,66206.0,66205.0,0.28055812]
[1722428898241,0.755217,66206.0,66205.0,0.28055812]
[1722428898630,0.45313,66206.0,66205.0,0.28055812]
[1722428898830,0.45313,66206.0,66205.0,0.15500991]
[1722428898831,0.755217,66206.0,66205.0,0.15500991]
[1722428899005,0.756217,66206.0,66205.0,0.29355885]
[1722428899245,0.756217,66206.0,66205.0,0.30655885]
[1722428899246,0.757217,66206.0,66205.0,0.30655885]
[1722428899390,0.002,66206.0,66205.0,0.30655885]
[1722428899595,0.002,66206.0,66205.0,0.75969485]
[1722428899802,0.002,66206.0,66205.0,1.27153518]
[1722428900001,0.002,66206.0,66205.0,1.57362618]
[1722428900347,0.002,66206.0,66205.0,2.77153518]
[1722428900775,0.002,66206.0,66205.0,1.27153518]
[1722428900970,0.002,66206.0,66205.0,0.89759485]
[1722428902304,0.002,66206.0,66205.0,0.89758314]
[1722428902837,0.002,66206.0,66205.0,1.19967414]
[1722428903605,0.002,66206.0,66205.0,0.89758314]
[1722428907883,0.002,66206.0,66205.0,0.38424714]
[1722428908794,0.002,66206.0,66205.0,0.25870991]
[1722428908992,0.002,66206.0,66205.0,0.38425483]
[1722428909418,0.002,66206.0,66205.0,0.25870991]
[1722428909628,0.002,66206.0,66205.0,0.18100991]
[1722428909873,0.153043,66206.0,66205.0,0.18100991]
[1722428910199,0.002,66206.0,66205.0,0.18100991]
[1722428912710,0.002,66206.0,66205.0,1.68100991]
[1722428913471,0.002,66206.0,66205.0,1.95759593]
[1722428913705,0.002,66206.0,66205.0,1.83205491]
[1722428913910,0.002,66206.0,66205.0,0.18192291]
[1722428914421,0.002,66206.0,66205.0,0.30746461]
[1722428914624,0.002,66206.0,66205.0,0.18192291]
[1722428915653,0.002,66206.0,66205.0,0.45851082]
[1722428916053,0.002,66206.0,66205.0,0.30746582]
[1722428916256,0.002,66206.0,66205.0,0.18192291]
[1722428916461,0.002,66206.0,66205.0,0.30746636]
[1722428916686,0.002,66206.0,66205.0,0.30746506]
[1722428917091,0.002,66206.0,66205.0,0.45851006]
[1722428917496,0.002,66206.0,66205.0,0.30746506]
[1722428918531,0.002,66206.0,66205.0,0.30746508]
[1722428918859,0.002,66206.0,66205.0,0.18192291]
[1722428919552,0.153043,66206.0,66205.0,0.18192291]
[1722428919956,0.002,66206.0,66205.0,0.18192291]
[1722428920417,0.002,66206.0,66205.0,0.30747123]
[1722428920662,0.002,66206.0,66205.0,0.18192291]
[1722428921484,0.002,66206.0,66205.0,0.30747112]
[1722428921620,0.002,66206.0,66205.0,0.30747157]
[1722428923541,0.002,66206.0,66205.0,0.18192291]
[1722428923542,0.04722488,66206.0,66205.0,0.18192291]
[1722428923741,0.002,66206.0,66205.0,0.18192291]
[1722428924377,0.04724376,66206.0,66205.0,0.18192291]
[1722428924581,0.06983732,66206.0,66205.0,0.18192291]
[1722428924989,0.002,66206.0,66205.0,0.18192291]
[1722428925163,0.06988151,66206.0,66205.0,0.18192291]
[1722428925595,0.002,66206.0,66205.0,0.18192291]
[1722428926700,0.09251191,66206.0,66205.0,0.18192291]
[1722428927100,0.819817,66206.0,66205.0,0.17754604]
[1722428927303,1.121904,66206.0,66205.0,0.17754604]
[1722428927854,1.25767187,66206.0,66205.0,0.17754604]
[1722428928124,1.121904,66206.0,66205.0,0.17754604]
[1722428928467,1.121904,66206.0,66205.0,0.16454604]
[1722428928468,1.120904,66206.0,66205.0,0.16454604]
[1722428928658,1.120904,66206.0,66205.0,0.16554604]
[1722428929117,1.120904,66206.0,66205.0,0.001913]
[1722428929118,1.119904,66206.0,66205.0,0.001913]
[1722428930389,1.119904,66206.0,66205.0,0.003913]
[1722428930869,1.119904,66206.0,66205.0,0.001913]
[1722428931078,1.27269686,66206.0,66205.0,0.000913]
[1722428931279,1.129904,66206.0,66205.0,0.001913]
[1722428931483,1.507191,66206.0,66205.0,0.001913]
[1722428931906,1.607191,66206.0,66205.0,0.001913]
[1722428936199,1.507191,66206.0,66205.0,0.001913]
[1722428936845,1.205104,66206.0,66205.0,0.001913]
[1722428937632,0.903017,66206.0,66205.0,0.001913]
[1722428937829,0.0726,66206.0,66205.0,0.001913]
[1722428938042,0.14730778,66206.0,66205.0,0.001913]
[1722428938255,0.0115542,66206.0,66205.0,0.001913]
[1722428938456,0.46313,66206.0,66205.0,0.001913]
[1722428938679,0.765217,66206.0,66205.0,0.001913]
[1722428939085,0.90097058,66206.0,66205.0,0.001913]
[1722428939947,0.59888358,66206.0,66205.0,0.001913]
[1722428940804,0.46313,66206.0,66205.0,0.001913]
[1722428940958,0.59888358,66206.0,66205.0,0.001913]
[1722428941174,0.765217,66206.0,66205.0,0.001913]
[1722428941573,0.830917,66206.0,66205.0,0.001913]
[1722428947476,0.226743,66206.0,66205.0,0.001913]
[1722428947667,0.0757,66206.0,66205.0,0.001913]
[1722428947879,0.226743,66206.0,66205.0,0.001913]
[1722428952430,0.830917,66206.0,66205.0,0.001913]
[1722428952629,0.60443,66206.0,66205.0,0.001913]
[1722428953266,0.906517,66206.0,66205.0,0.001913]
[1722428953470,1.05927101,66206.0,66205.0,0.001913]
[1722428953670,0.906517,66206.0,66205.0,0.001913]
[1722428954194,1.0593089,66206.0,66205.0,0.001913]
[1722428954394,0.906517,66206.0,66205.0,0.001913]
[1722428955407,1.05931426,66206.0,66205.0,0.001913]
[1722428955610,1.218604,66206.0,66205.0,0.001913]
[1722428957150,1.540691,66206.0,66205.0,0.001913]
[1722428957357,1.71438532,66206.0,66205.0,0.001913]
[1722428957555,1.82694441,66206.0,66205.0,0.001913]
[1722428957766,1.88653312,66206.0,66205.0,0.001913]
[1722428957944,1.87909647,66206.0,66205.0,0.001913]
[1722428958132,1.87309647,66206.0,66205.0,0.000913]
[1722428958325,1.64625056,66206.0,66205.0,0.000913]
[1722428958591,1.86909647,66206.0,66205.0,0.000913]
[1722428958791,1.65825056,66206.0,66205.0,0.001913]
[1722428959020,1.35616356,66206.0,66205.0,0.001913]
[1722428959166,1.34571776,66206.0,66205.0,0.000913]
[1722428959920,1.34416356,66206.0,66205.0,0.000913]
[1722428960033,1.35616356,66206.0,66205.0,0.001913]
[1722428960240,1.37016356,66206.0,66205.0,0.002913]
[1722428960440,1.35616356,66206.0,66205.0,0.001913]
[1722428960982,1.357604,66206.0,66205.0,0.002913]
[1722428961186,1.37016339,66206.0,66205.0,0.002913]
[1722428961391,1.39016339,66206.0,66205.0,0.002913]
[1722428963167,1.055517,66206.0,66205.0,0.002913]
[1722428963526,1.045517,66206.0,66205.0,0.002913]
[1722428963724,0.64483,66206.0,66205.0,0.002913]
[1722428963902,0.24445725,66206.0,66205.0,0.002913]
[1722428964106,0.17875725,66206.0,66205.0,0.002913]
[1722428964308,0.026,66206.0,66205.0,0.00718949]
[1722428964631,0.014,66206.0,66205.0,0.001913]
[1722428964992,0.028,66206.0,66205.0,0.002913]
[1722428965196,0.18004112,66206.0,66205.0,0.002913]
[1722428965397,0.16604112,66206.0,66205.0,0.001913]
[1722428965763,0.178043,66206.0,66205.0,0.002913]
[1722428966119,0.027,66206.0,66205.0,0.002913]
[1722428966320,0.18083418,66206.0,66205.0,0.002913]
[1722428966525,0.17975231,66206.0,66205.0,0.002913]
[1722428967104,0.027,66206.0,66205.0,0.002913]
[1722428967933,0.013,66206.0,66205.0,0.001913]
[1722428968127,0.013,66206.0,66205.0,0.002913]
[1722428968400,0.013,66206.0,66205.0,0.08998949]
[1722428968401,0.1628344,66206.0,66205.0,0.08998949]
[1722428968617,0.027,66206.0,66205.0,0.15228949]
[1722428969171,0.14984625,66206.0,66205.0,0.15128949]
[1722428969372,0.15384625,66206.0,66205.0,0.15128949]
[1722428969721,0.004,66206.0,66205.0,0.15028949]
[1722428969920,0.009,66206.0,66205.0,0.15128949]
[1722428970763,0.005,66206.0,66205.0,0.00618949]
[1722428971178,0.16087757,66206.0,66205.0,0.10618949]
[1722428971384,0.008,66206.0,66205.0,0.101913]
[1722428971580,0.30892057,66206.0,66205.0,0.101913]
[1722428971825,0.15787757,66206.0,66205.0,0.101913]
[1722428972045,0.31382404,66206.0,66205.0,0.101913]
[1722428972251,0.31292057,66206.0,66205.0,0.101913]
[1722428972605,0.160043,66206.0,66205.0,0.101913]
[1722428973030,0.155043,66206.0,66205.0,0.100913]
[1722428973439,0.159043,66206.0,66205.0,0.100913]
[1722428973793,0.45713,66206.0,66205.0,0.100913]
[1722428974198,0.161043,66206.0,66205.0,0.101913]
[1722428974623,0.46313,66206.0,66205.0,0.101913]
[1722428976629,0.46313,66206.0,66205.0,0.10593642]
[1722428977437,1.067304,66206.0,66205.0,0.10593642]
[1722428977590,0.788217,66206.0,66205.0,0.10593642]
[1722428977775,0.788217,66206.0,66205.0,0.101913]
[1722428980026,0.930917,66206.0,66205.0,0.101913]
[1722428980233,1.233004,66206.0,66205.0,0.101913]
[1722428980434,0.93184009,66206.0,66205.0,0.101913]
[1722428980642,1.25392709,66206.0,66205.0,0.101913]
[1722428980819,0.94184009,66206.0,66205.0,0.101913]
[1722428981220,0.940917,66206.0,66205.0,0.101913]
[1722428981421,0.798217,66206.0,66205.0,0.101913]
[1722428981649,0.794217,66206.0,66205.0,0.101913]
[1722428982049,0.804217,66206.0,66205.0,0.102913]
[1722428982460,0.788217,66206.0,66205.0,0.100913]
[1722428982928,0.802217,66206.0,66205.0,0.101913]
[1722428983865,0.816217,66206.0,66205.0,0.101913]
[1722428984082,0.788217,66206.0,66205.0,0.100913]
[1722428984285,0.788217,66206.0,66205.0,0.101913]
[1722428984487,0.816217,66206.0,66205.0,0.101913]
[1722428984710,0.802217,66206.0,66205.0,0.101913]
[1722428985042,0.788217,66206.0,66205.0,0.100913]
[1722428985244,0.816217,66206.0,66205.0,0.101913]
[1722428985652,0.802217,66206.0,66205.0,0.101913]
[1722428985853,0.802217,66206.0,66205.0,0.100913]
[1722428986078,0.802217,66206.0,66205.0,0.101913]
[1722428986079,0.816217,66206.0,66205.0,0.101913]
[1722428986490,0.806217,66206.0,66205.0,0.101913]
[1722428986680,0.816217,66206.0,66205.0,0.101913]
[1722428988327,0.028,66206.0,66205.0,0.184013]
[1722428988675,0.179043,66206.0,66205.0,0.18803598]
[1722428988878,0.028,66206.0,66205.0,0.25153598]
[1722428989082,0.18094767,66206.0,66205.0,0.25153598]
[1722428989505,0.18094767,66206.0,66205.0,0.247513]
[1722428989893,0.18094767,66206.0,66205.0,0.25153598]
[1722428990468,0.16694234,66206.0,66205.0,0.25153598]
[1722428990671,0.17236113,66206.0,66205.0,0.25153598]
[1722428991065,0.17236113,66206.0,66205.0,0.25253598]
[1722428991066,0.18036113,66206.0,66205.0,0.25253598]
[1722428991345,0.0195542,66206.0,66205.0,0.25253598]
[1722428991558,0.17249516,66206.0,66205.0,0.25253598]
[1722428991791,0.18191252,66206.0,66205.0,0.25253598]
[1722428991988,0.02897164,66206.0,66205.0,0.25253598]
[1722428992317,0.1705972,66206.0,66205.0,0.25253598]
[1722428992547,0.48210189,66206.0,66205.0,0.25253598]
[1722428992746,0.48210189,66206.0,66205.0,0.248513]
[1722428992952,0.48054769,66206.0,66205.0,0.248513]
[1722428993159,0.48054769,66206.0,66205.0,0.25253598]
[1722428993357,0.17846072,66206.0,66205.0,0.25253598]
[1722428993580,0.48054772,66206.0,66205.0,0.25253598]
[1722428993795,0.02741772,66206.0,66205.0,0.25253598]
[1722428994196,0.018,66206.0,66205.0,0.25253598]
[1722428994402,0.18001457,66206.0,66205.0,0.25253598]
[1722428994847,0.17846037,66206.0,66205.0,0.25253598]
[1722428995017,0.02741737,66206.0,66205.0,0.25253598]
[1722428995404,0.018,66206.0,66205.0,0.25253598]
[1722428995961,0.018,66206.0,66205.0,0.18903598]
[1722428995962,0.18035755,66206.0,66205.0,0.18903598]
[1722428996254,0.17846026,66206.0,66205.0,0.18903598]
[1722428996459,0.02741726,66206.0,66205.0,0.18903598]
[1722428997234,0.1705972,66206.0,66205.0,0.18903598]
[1722428997438,0.169043,66206.0,66205.0,0.18903598]
[1722428997642,0.169043,66206.0,66205.0,0.185013]
[1722428998048,0.1705972,66206.0,66205.0,0.18902427]
[1722428998251,0.169043,66206.0,66205.0,0.18902427]
[1722428998600,0.47113,66206.0,66205.0,0.18902427]
[1722428998804,0.4726842,66206.0,66205.0,0.18902427]
[1722428999288,0.47113,66206.0,66205.0,0.18902427]
[1722428999495,0.4726842,66206.0,66205.0,0.18902427]
[1722429000367,1.39893644,66206.0,66205.0,0.10692427]
[1722429000577,1.74201528,66206.0,66205.0,0.10692427]
[1722429000794,1.26929524,66206.0,66205.0,0.10692427]
[1722429001016,0.169043,66206.0,66205.0,0.10692427]
[1722429001271,0.169043,66206.0,66205.0,0.71010627]
[1722429001272,0.01,66206.0,66205.0,0.71010627]
[1722429001509,0.03673279,66206.0,66205.0,0.53213552]
[1722429001719,0.12335202,66224.0,66205.0,0.53213552]
[1722429001720,0.03018096,66224.0,66210.0,0.1]
[1722429001942,0.02901,66249.0,66235.0,0.379555]
[1722429001943,0.04527661,66240.0,66235.0,0.379555]
[1722429002147,0.04527661,66240.0,66230.0,0.1594]
[1722429002148,0.01617215,66250.0,66237.0,0.15063304]
[1722429002370,0.04517133,66263.0,66254.0,0.1393]
[1722429002585,0.00851,66264.0,66255.0,0.15063304]
[1722429003618,0.00851,66264.0,66254.0,0.51324033]
[1722429003770,0.00851,66264.0,66254.0,0.66387337]
[1722429004126,0.00851,66264.0,66255.0,0.15063304]
[1722429004974,0.150923,66259.0,66255.0,0.15063304]
[1722429005188,0.150923,66259.0,66254.0,0.45254033]
[1722429005189,0.150932,66255.0,66254.0,0.45254033]
[1722429005402,0.452796,66255.0,66254.0,0.37494033]
[1722429005595,0.75466,66255.0,66254.0,0.37394033]
[1722429005956,1.056524,66255.0,66254.0,0.37394033]
[1722429006339,1.056524,66255.0,66246.0,0.0794]
[1722429006340,0.45285,66247.0,66246.0,0.37394033]
[1722429006540,0.45285,66247.0,66239.0,0.37394033]
[1722429006541,0.01,66246.0,66239.0,0.37394033]
[1722429006760,0.37724716,66247.0,66239.0,0.37394033]
[1722429006761,0.452898,66240.0,66239.0,0.37394033]
[1722429006975,0.75483,66240.0,66239.0,0.37394033]
[1722429007803,0.452959,66231.0,66230.0,0.0775]
[1722429007999,0.02,66245.0,66223.0,0.0626]
[1722429008000,0.01,66243.0,66229.0,0.37394033]
[1722429008200,0.754942,66230.0,66229.0,0.37394033]
[1722429008455,0.754942,66230.0,66214.0,0.00913114]
[1722429008456,0.151023,66215.0,66214.0,0.00913114]
[1722429008663,0.151023,66215.0,66214.0,0.38307147]
[1722429008880,0.151023,66215.0,66214.0,0.37394033]
[1722429009593,0.302029,66219.0,66214.0,0.37394033]
[1722429009905,0.151023,66215.0,66214.0,0.37394033]
[1722429010111,0.755115,66215.0,66214.0,0.37394033]
[1722429010333,0.906138,66215.0,66205.0,0.10492427]
[1722429010537,0.755217,66206.0,66205.0,0.4788646]
[1722429010717,0.755217,66206.0,66205.0,0.10492427]
[1722429010956,0.45313,66206.0,66205.0,0.10492427]
[1722429011931,0.46513,66206.0,66205.0,0.10592427]
[1722429012246,0.012,66206.0,66205.0,0.10592427]
[1722429012459,0.302037,66217.0,66205.0,0.62949764]
[1722429012687,0.0015542,66216.0,66205.0,0.62949764]
[1722429012872,0.02,66222.0,66205.0,0.63049764]
[1722429012873,0.158043,66206.0,66205.0,0.63049764]
[1722429013013,0.007,66206.0,66205.0,0.63049764]
[1722429013943,0.46013,66206.0,66205.0,0.4798646]
[1722429014199,0.46013,66206.0,66205.0,0.10592427]
[1722429014401,0.45313,66206.0,66205.0,0.10492427]
[1722429014615,0.755217,66206.0,66205.0,0.10492427]